bitfinex/quotes_ETHUSD_20240610
["timestamp","ask_amount","ask_price","bid_price","bid_amount"]
[1718007644951,1.08725936,3667.4,3666.3,1.36374]
[1718007644952,2.2614,3667.0,3666.3,1.36374]
[1718007645367,0.04930776,3666.9,3666.3,1.36374]
[1718007646184,0.04930776,3666.9,3666.3,36.36374]
[1718007646487,0.04930776,3666.9,3666.3,1.36374]
[1718007647168,0.85330776,3666.9,3666.3,1.36374]
[1718007647490,0.04944101,3666.8,3666.3,1.36374]
[1718007650688,3.0654,3667.0,3666.3,1.36374]
[1718007651180,0.04946008,3666.9,3666.3,1.36374]
[1718007652693,8.182,3666.8,3666.3,1.36374]
[1718007652875,0.04942193,3666.7,3666.3,1.36374]
[1718007653199,8.182,3666.8,3666.3,1.36374]
[1718007653400,0.04941821,3666.6,3666.3,1.36374]
[1718007653563,8.182,3666.8,3666.3,1.36374]
[1718007653564,0.04943217,3666.7,3666.3,1.36374]
[1718007653765,0.04940426,3666.5,3666.3,1.36374]
[1718007653965,8.182,3666.8,3666.3,1.36374]
[1718007654192,0.04935446,3666.4,3666.3,1.36374]
[1718007654412,8.182,3666.8,3666.6,1.36365]
[1718007660505,1.04434,3666.7,3666.6,1.36365]
[1718007661012,3.36024,3666.7,3666.6,1.36365]
[1718007661179,3.36024,3666.7,3666.3,1.36376]
[1718007661718,0.04799155,3666.6,3666.3,1.36376]
[1718007663190,0.04799155,3666.6,3666.0,1.36387]
[1718007663191,2.251,3666.5,3666.0,1.36387]
[1718007663696,0.04782431,3666.4,3666.0,1.36387]
[1718007665083,2.3594,3666.3,3666.0,1.36387]
[1718007665301,0.04779639,3666.2,3666.0,1.36387]
[1718007665477,2.3594,3666.3,3666.0,1.36387]
[1718007665678,0.04762208,3666.2,3666.0,1.36387]
[1718007665905,2.3594,3666.3,3666.0,1.36387]
[1718007666101,0.04762208,3666.2,3666.0,1.36387]
[1718007666304,2.3594,3666.3,3666.0,1.36387]
[1718007666613,0.04760812,3666.1,3666.0,1.36387]
[1718007666780,2.3594,3666.3,3666.0,1.36387]
[1718007667181,0.04762208,3666.2,3666.0,1.36387]
[1718007667613,2.3594,3666.3,3666.0,1.36387]
[1718007667798,0.04760812,3666.1,3666.0,1.36387]
[1718007668005,2.3594,3666.3,3666.0,1.36387]
[1718007668406,0.04757171,3666.2,3666.0,1.36387]
[1718007668785,2.3594,3666.3,3666.0,1.36387]
[1718007668983,0.04755775,3666.1,3666.0,1.36387]
[1718007669185,2.3594,3666.3,3666.0,1.36387]
[1718007669588,0.04757171,3666.2,3666.0,1.36387]
[1718007669988,2.3594,3666.3,3666.0,1.36387]
[1718007670189,0.04755775,3666.1,3666.0,1.36387]
[1718007670434,2.3594,3666.3,3666.0,1.36387]
[1718007670726,0.04757171,3666.2,3666.0,1.36387]
[1718007671089,2.3594,3666.3,3666.0,1.36387]
[1718007671302,0.04757171,3666.2,3666.0,1.36387]
[1718007671621,2.3594,3666.3,3666.0,1.36387]
[1718007671788,0.04755263,3666.1,3666.0,1.36387]
[1718007671988,2.3219,3666.6,3666.0,1.36387]
[1718007672185,3.77855395,3666.6,3666.0,1.36387]
[1718007672391,0.04761358,3666.5,3666.0,1.36387]
[1718007672812,0.04761358,3666.5,3666.0,2.16787]
[1718007673324,0.04761358,3666.5,3666.2,1.36378]
[1718007677050,8.182,3666.8,3666.5,1.36367]
[1718007677649,8.182,3666.8,3666.7,1.36362]
[1718007677800,8.182,3666.8,3666.7,3.67032]
[1718007678003,0.0635983,3667.3,3667.2,1.36343]
[1718007679731,0.11011827,3667.3,3667.2,1.36343]
[1718007681134,0.0635983,3667.3,3667.2,1.36343]
[1718007684139,0.0635983,3667.3,3667.2,1.580173]
[1718007685536,0.0635983,3667.3,3667.2,3.965173]
[1718007686729,0.0635983,3667.3,3667.2,38.965173]
[1718007687446,0.0635983,3667.3,3667.2,41.965173]
[1718007688035,0.0635983,3667.3,3667.2,43.328603]
[1718007697918,0.0635983,3667.3,3667.2,43.878603]
[1718007699722,0.0635983,3667.3,3667.2,40.943603]
[1718007700934,0.0635983,3667.3,3667.2,45.163533]
[1718007703728,8.3e-06,3667.3,3667.2,45.163533]
[1718007705839,8.3e-06,3667.3,3667.2,45.913533]
[1718007706759,8.3e-06,3667.3,3667.2,45.163533]
[1718007708743,8.3e-06,3667.3,3667.2,45.967533]
[1718007710363,8.3e-06,3667.3,3667.2,47.717533]
[1718007710551,0.006,3669.1,3668.9,1.3628]
[1718007710552,2.3381,3669.0,3668.9,1.3628]
[1718007710957,2.38312257,3669.0,3668.9,1.3628]
[1718007711158,2.3381,3669.0,3668.9,1.3628]
[1718007711340,2.38312768,3669.0,3668.9,1.3628]
[1718007712158,2.3381,3669.0,3668.9,1.3628]
[1718007712842,2.31754023,3669.0,3668.9,1.3628]
[1718007715242,2.31754023,3669.0,3668.5,1.36291]
[1718007717634,2.31754023,3669.0,3668.7,1.36285]
[1718007720371,2.31754023,3669.0,3668.7,1.579535]
[1718007721865,2.31754023,3669.0,3668.7,2.383535]
[1718007723167,2.3224,3669.6,3669.0,1.36276]
[1718007723380,2.3224,3669.5,3669.0,1.36276]
[1718007723865,0.804,3669.6,3669.0,1.36276]
[1718007723866,2.36855113,3669.4,3669.0,1.36276]
[1718007724257,2.3231,3669.4,3669.0,1.36276]
[1718007724884,2.4424,3669.3,3668.7,1.36286]
[1718007725094,2.76704,3669.3,3668.7,1.36286]
[1718007725583,2.4424,3669.1,3668.7,1.36286]
[1718007726971,2.4561,3668.9,3668.7,1.36286]
[1718007727495,0.04538958,3668.8,3668.7,1.36286]
[1718007727892,2.4561,3668.9,3668.7,1.36286]
[1718007730795,0.04532382,3668.8,3668.7,1.36286]
[1718007731703,2.4561,3668.9,3668.7,1.36286]
[1718007739931,0.04374265,3668.8,3668.7,1.36286]
[1718007740430,2.4561,3668.9,3668.7,1.36286]
[1718007743345,2.4561,3668.9,3668.3,7.28]
[1718007743346,3.67260425,3668.9,3668.4,1.36298]
[1718007743538,2.454,3668.8,3668.4,1.36298]
[1718007743935,0.04372135,3668.7,3668.4,1.36298]
[1718007744330,2.454,3668.8,3668.7,1.36288]
[1718007747723,2.49770049,3668.8,3668.7,1.36288]
[1718007748145,2.454,3668.8,3668.7,1.36288]
[1718007751167,2.49770561,3668.8,3668.7,1.36288]
[1718007751666,2.454,3668.8,3668.7,1.36288]
[1718007757445,2.43029298,3669.0,3668.7,1.36288]
[1718007757759,3.28094251,3669.0,3668.7,1.36288]
[1718007758075,0.04376546,3668.9,3668.7,1.36288]
[1718007758264,2.43029298,3669.0,3668.7,1.36288]
[1718007759180,0.01429298,3669.0,3668.7,1.36288]
[1718007760842,2.4621,3668.9,3668.7,1.36288]
[1718007764282,0.01429298,3669.0,3668.7,1.36288]
[1718007764481,0.04231356,3668.8,3668.7,1.36288]
[1718007764681,0.86494251,3669.0,3668.7,1.36288]
[1718007765114,0.0423275,3668.9,3668.7,1.36288]
[1718007765721,0.86494251,3669.0,3668.4,1.36297]
[1718007766018,0.0423275,3668.9,3668.4,1.36297]
[1718007766699,1.5073247,3669.0,3668.4,1.36297]
[1718007766905,0.04231356,3668.8,3668.4,1.36297]
[1718007767125,1.5073247,3669.0,3668.4,1.36297]
[1718007767528,0.0423275,3668.9,3668.4,1.36297]
[1718007767938,1.5073247,3669.0,3668.4,1.36297]
[1718007768415,0.0423275,3668.9,3668.4,36.36297]
[1718007768622,0.86494251,3669.0,3668.4,36.36297]
[1718007769234,0.0423275,3668.9,3668.4,36.36297]
[1718007769408,0.86494251,3669.0,3668.4,36.36297]
[1718007769610,0.0423275,3668.9,3668.4,36.36297]
[1718007770006,0.86494251,3669.0,3668.4,36.36297]
[1718007770205,0.04233486,3668.9,3668.4,36.36297]
[1718007770515,0.85064953,3668.9,3668.4,36.36297]
[1718007771424,0.85064953,3668.9,3668.4,1.36297]
[1718007771734,0.04232828,3668.8,3668.4,1.36297]
[1718007771900,2.4854,3668.7,3668.4,36.36297]
[1718007772099,2.4854,3668.7,3668.1,3.85741339]
[1718007772100,2.4854,3668.7,3668.1,5.22050339]
[1718007772343,2.4854,3668.7,3668.1,1.36309]
[1718007772507,0.04232232,3668.6,3668.1,1.36309]
[1718007772909,2.4854,3668.7,3668.1,1.36309]
[1718007773801,2.4854,3668.7,3668.1,2.22050339]
[1718007774209,2.4854,3668.7,3668.1,1.36309]
[1718007775106,2.4854,3668.7,3668.2,35.0]
[1718007777356,2.4854,3668.7,3668.3,1.36301]
[1718007782354,1.35676372,3668.9,3668.6,1.36291]
[1718007782355,0.85064953,3668.9,3668.6,1.36291]
[1718007782745,3.15364251,3669.0,3668.6,1.36291]
[1718007783118,0.04230967,3668.9,3668.6,1.36291]
[1718007783323,2.30299298,3669.0,3668.6,1.36291]
[1718007783747,0.0423564,3668.9,3668.6,1.36291]
[1718007784116,2.30299298,3669.0,3668.6,1.36291]
[1718007784341,0.01429298,3669.0,3668.6,1.36291]
[1718007784938,0.0417167,3668.9,3668.6,1.36291]
[1718007785338,0.01429298,3669.0,3668.6,1.36291]
[1718007785718,0.0417167,3668.9,3668.6,1.36291]
[1718007785914,0.01429298,3669.0,3668.6,1.36291]
[1718007791856,0.04092928,3668.9,3668.6,1.36291]
[1718007792237,0.01429298,3669.0,3668.6,1.36291]
[1718007793062,0.04092928,3668.9,3668.6,1.36291]
[1718007793258,0.01429298,3669.0,3668.8,1.36284]
[1718007795970,0.01429298,3669.0,3668.9,35.0]
[1718007796777,0.01429298,3669.0,3668.9,38.16601339]
[1718007796930,0.01429298,3669.0,3668.9,41.16601339]
[1718007797129,0.01429298,3669.0,3668.9,41.45181785]
[1718007797365,0.01429298,3669.0,3668.9,41.89396551]
[1718007797762,0.01429298,3669.0,3668.9,40.75074766]
[1718007798326,0.01429298,3669.0,3668.9,41.8926683]
[1718007799471,0.01429298,3669.0,3668.9,42.44196942]
[1718007799765,0.01429298,3669.0,3668.9,41.30074766]
[1718007800069,0.01429298,3669.0,3668.9,43.24599354]
[1718007800269,0.01429298,3669.0,3668.9,42.69599354]
[1718007800464,0.01429298,3669.0,3668.9,41.55474766]
[1718007801258,0.01429298,3669.0,3668.9,42.41016399]
[1718007804275,0.01429298,3669.0,3668.9,41.55474766]
[1718007805475,0.01429298,3669.0,3668.9,6.55474766]
[1718007806464,2.2908,3670.6,3670.3,1.36228]
[1718007811301,2.4690461,3670.9,3670.6,1.36217]
[1718007812449,0.1227461,3670.9,3670.6,1.36217]
[1718007813390,0.1227461,3670.9,3670.6,1.814757]
[1718007813594,0.1227461,3670.9,3670.8,1.3621]
[1718007813889,0.16190458,3670.9,3670.8,1.3621]
[1718007814987,0.1227461,3670.9,3670.8,1.3621]
[1718007819979,0.08922152,3670.9,3670.8,1.3621]
[1718007820593,0.08922152,3670.9,3670.8,1.49831]
[1718007821479,0.08922152,3670.9,3670.8,1.3621]
[1718007822089,0.12896528,3670.9,3670.8,1.3621]
[1718007823097,0.08922152,3670.9,3670.8,4.5517]
[1718007823252,0.08922152,3670.9,3670.8,6.7477]
[1718007823458,0.08922152,3670.9,3670.8,7.42247]
[1718007823966,0.08922152,3670.9,3670.8,5.03687]
[1718007824387,0.08922152,3670.9,3670.8,2.03687]
[1718007824956,0.12915076,3670.9,3670.8,1.3621]
[1718007825594,2.2917,3670.8,3670.5,1.3622]
[1718007826007,0.84405394,3670.7,3670.5,1.3622]
[1718007826296,0.84405394,3670.7,3670.2,8.64231]
[1718007826499,0.804,3670.7,3670.2,8.64231]
[1718007826861,2.4733,3670.6,3670.2,7.28]
[1718007827064,0.804,3670.5,3670.2,7.28]
[1718007827297,0.84390027,3670.5,3670.2,7.28]
[1718007827506,0.03990027,3670.5,3670.2,7.28]
[1718007829690,0.03990027,3670.5,3670.1,1.36234]
[1718007830001,2.4733,3670.6,3670.1,1.36234]
[1718007832596,2.4733,3670.6,3670.4,1.36223]
[1718007832985,0.03977774,3670.5,3670.4,1.36223]
[1718007837199,2.4675,3670.6,3670.4,1.36223]
[1718007837568,0.03960476,3670.5,3670.4,1.36223]
[1718007837769,2.4675,3670.6,3670.4,1.36223]
[1718007838001,2.55672152,3670.9,3670.6,1.36214]
[1718007838385,0.03964653,3670.8,3670.6,1.36214]
[1718007838993,2.55672152,3670.9,3670.6,1.36214]
[1718007839201,0.03963493,3670.7,3670.6,1.36214]
[1718007839408,0.08922152,3670.9,3670.6,1.36214]
[1718007839767,0.03976309,3670.8,3670.6,1.36214]
[1718007843176,0.03976309,3670.8,3670.6,2.617554]
[1718007844901,0.08922152,3670.9,3670.6,2.617554]
[1718007845211,0.08922152,3670.9,3670.8,2.1661]
[1718007847874,0.08922152,3670.9,3670.8,1.3621]
[1718007848079,0.08922152,3670.9,3670.8,2.1661]
[1718007848282,0.08922152,3670.9,3670.8,2.9626514]
[1718007848725,0.08922152,3670.9,3670.8,5.9626514]
[1718007859349,0.08922152,3670.9,3670.8,5.1586514]
[1718007859503,0.08922152,3670.9,3670.8,2.9626514]
[1718007859699,0.08922152,3670.9,3670.8,5.9626514]
[1718007859951,0.08922152,3670.9,3670.8,5.1586514]
[1718007860141,0.126949,3670.9,3670.8,5.1586514]
[1718007860306,0.08922152,3670.9,3670.8,5.1586514]
[1718007860507,0.126949,3670.9,3670.8,5.1586514]
[1718007862604,0.0151356,3670.9,3670.8,11.35499728]
[1718007862805,2.3361,3672.3,3671.3,2.3309]
[1718007863031,2.3361,3672.3,3671.8,0.804]
[1718007863245,2.3361,3672.3,3670.9,12.66233058]
[1718007863246,2.3361,3672.3,3671.4,3.0]
[1718007863406,2.3361,3672.3,3671.5,0.804]
[1718007864232,2.3361,3672.3,3672.0,1.36161]
[1718007865158,2.65011,3672.3,3672.0,1.36161]
[1718007865911,0.804,3672.2,3671.6,1.36177]
[1718007866109,2.44,3671.7,3671.6,1.36177]
[1718007866345,2.7644,3671.7,3671.6,1.36177]
[1718007866808,2.7644,3671.7,3671.3,1.36191]
[1718007867032,2.4205,3671.5,3670.9,8.64203]
[1718007867308,2.4205,3671.5,3670.9,1.36203]
[1718007870308,0.03291033,3671.4,3670.9,1.36203]
[1718007870824,2.3496,3671.3,3670.9,1.36203]
[1718007871137,0.03288249,3671.2,3670.9,1.36203]
[1718007871347,2.3496,3671.3,3670.9,1.36203]
[1718007872062,0.03288249,3671.2,3670.7,0.804]
[1718007872350,2.3496,3671.3,3670.9,0.804]
[1718007873427,2.3496,3671.3,3671.1,1.36198]
[1718007875066,2.4511,3671.8,3671.4,1.36185]
[1718007875441,0.03287455,3671.7,3671.4,1.36185]
[1718007875853,2.4511,3671.8,3671.4,1.36185]
[1718007876051,0.03286063,3671.6,3671.4,1.36185]
[1718007876358,0.03284672,3671.5,3671.4,1.36185]
[1718007876562,2.4511,3671.8,3671.4,1.36185]
[1718007876872,0.03284672,3671.5,3671.4,1.36185]
[1718007877346,2.4511,3671.8,3671.4,1.36185]
[1718007877537,0.03292885,3671.7,3671.4,1.36185]
[1718007878074,0.03291493,3671.6,3671.4,1.36185]
[1718007878371,2.4511,3671.8,3671.4,1.36185]
[1718007878576,0.03292885,3671.7,3671.4,1.36185]
[1718007878867,2.4511,3671.8,3671.4,1.36185]
[1718007879057,0.03291493,3671.6,3671.4,1.36185]
[1718007879255,2.4511,3671.8,3671.4,1.36185]
[1718007879453,0.03293204,3671.5,3671.4,1.36185]
[1718007879651,2.4414,3671.5,3671.4,1.36185]
[1718007879892,2.47433977,3671.5,3671.0,1.36199]
[1718007883054,2.47433977,3671.5,3671.2,1.36191]
[1718007884974,0.03293977,3671.5,3671.2,1.36191]
[1718007885278,2.4734,3671.6,3671.2,1.36191]
[1718007885497,0.03292258,3671.4,3671.2,1.36191]
[1718007885645,2.4734,3671.6,3671.2,1.578501]
[1718007885846,2.4734,3671.6,3671.2,1.36191]
[1718007885847,0.03288539,3671.3,3671.2,1.36191]
[1718007886352,2.4734,3671.6,3671.2,1.36191]
[1718007886605,0.03292345,3671.5,3671.2,1.36191]
[1718007887575,2.293,3671.4,3671.2,1.36191]
[1718007887885,0.03234968,3671.3,3671.2,1.36191]
[1718007888771,2.52524968,3671.3,3671.2,1.36191]
[1718007888957,2.52524968,3671.3,3670.9,1.36205]
[1718007910121,2.52524968,3671.3,3671.1,1.36196]
[1718007910509,2.4929,3671.3,3671.1,1.36196]
[1718007911134,0.02826252,3671.2,3671.1,1.36196]
[1718007911532,2.4929,3671.3,3671.1,1.36196]
[1718007911803,0.02808718,3671.2,3671.1,1.36196]
[1718007912007,2.4929,3671.3,3671.1,1.36196]
[1718007912221,0.02808718,3671.2,3671.1,1.36196]
[1718007912423,2.4929,3671.3,3671.1,1.36196]
[1718007912634,0.02808718,3671.2,3671.1,1.36196]
[1718007912962,0.85064953,3671.5,3671.3,1.36188]
[1718007913365,0.02811501,3671.4,3671.3,1.36188]
[1718007913752,0.85064953,3671.7,3671.3,1.36188]
[1718007913951,0.02811501,3671.4,3671.3,1.36188]
[1718007914158,0.85064953,3671.7,3671.3,1.36188]
[1718007914352,0.02811501,3671.4,3671.3,1.36188]
[1718007914657,0.02814285,3671.6,3671.3,1.36188]
[1718007915445,2.4607,3671.5,3671.3,1.36188]
[1718007915645,0.02819268,3671.4,3671.3,1.36188]
[1718007917456,0.02819268,3671.4,3671.0,1.36201]
[1718007919669,0.02819268,3671.4,3670.7,1.36212]
[1718007919875,2.4585,3671.3,3670.7,1.36212]
[1718007920262,0.0276318,3671.2,3670.7,1.36212]
[1718007920667,2.4778,3671.1,3670.7,1.36212]
[1718007920855,3.2818,3671.1,3670.7,1.36212]
[1718007921041,0.02759619,3671.0,3670.7,1.36212]
[1718007923372,0.02759619,3671.0,3670.6,3.0]
[1718007923575,3.2678,3670.9,3670.3,1.36225]
[1718007924079,0.02749005,3670.8,3670.3,1.36225]
[1718007924278,2.4638,3670.7,3670.3,1.36225]
[1718007924454,0.0274622,3670.6,3670.3,1.36225]
[1718007927691,0.02744828,3670.5,3670.3,1.36225]
[1718007928193,2.3166,3670.8,3670.3,1.36225]
[1718007928404,0.02743435,3670.4,3670.3,1.36225]
[1718007928870,2.3166,3670.8,3670.3,1.36225]
[1718007929067,0.02744545,3670.7,3670.3,1.36225]
[1718007929258,2.3166,3670.8,3670.3,1.36225]
[1718007929453,0.02744545,3670.7,3670.3,1.36225]
[1718007929691,2.3166,3670.8,3670.3,1.36225]
[1718007929883,0.02743664,3670.6,3670.3,1.36225]
[1718007930084,2.3166,3670.8,3670.3,1.36225]
[1718007930484,0.02742271,3670.5,3670.3,1.36225]
[1718007930687,2.3166,3670.8,3670.3,1.36225]
[1718007930886,0.83144545,3670.7,3670.3,1.36225]
[1718007931695,0.85914141,3670.7,3670.3,1.36225]
[1718007931902,2.4187,3670.6,3670.3,1.36225]
[1718007932197,0.804,3670.5,3670.3,1.36225]
[1718007932374,0.85897965,3670.5,3670.3,1.36225]
[1718007932574,0.05497965,3670.5,3670.3,1.36225]
[1718007932977,2.3181,3670.4,3670.1,3.0]
[1718007933171,0.804,3670.4,3670.1,3.0]
[1718007933393,2.31005229,3670.3,3670.1,3.0]
[1718007934000,0.804,3670.2,3670.1,3.0]
[1718007934177,0.804,3670.2,3669.9,1.36241]
[1718007937905,0.0547268,3670.1,3669.9,1.36241]
[1718007938410,0.804,3670.2,3669.9,1.36241]
[1718007938618,0.05471847,3670.0,3669.9,1.36241]
[1718007938797,0.804,3670.2,3669.9,1.36241]
[1718007939319,0.05473163,3670.1,3669.9,1.36241]
[1718007940585,0.804,3670.2,3669.9,1.36241]
[1718007940781,0.05469788,3670.0,3669.9,1.36241]
[1718007941035,0.804,3670.2,3669.9,1.36241]
[1718007941172,0.05469788,3670.0,3669.9,1.36241]
[1718007941371,0.804,3670.2,3669.9,1.36241]
[1718007941597,0.05469304,3670.0,3669.9,1.36241]
[1718007941912,0.05471721,3670.0,3669.9,1.36241]
[1718007942070,0.804,3670.2,3669.9,1.36241]
[1718007942265,0.05473038,3670.1,3669.9,1.36241]
[1718007945707,0.804,3670.4,3669.9,1.36241]
[1718007945913,0.05457463,3670.0,3669.9,1.36241]
[1718007946117,0.804,3670.4,3669.9,1.36241]
[1718007946279,0.05457463,3670.0,3669.9,1.36241]
[1718007946479,0.804,3670.4,3669.9,1.36241]
[1718007946685,0.05461413,3670.3,3669.9,1.36241]
[1718007953626,0.05461413,3670.3,3670.1,1.36233]
[1718007953941,2.4669,3671.0,3670.2,0.05449078]
[1718007954097,2.4669,3671.4,3670.9,1.36203]
[1718007954302,0.85064953,3671.7,3670.9,1.36203]
[1718007954498,0.804,3671.6,3670.9,1.36203]
[1718007954901,0.804,3671.4,3670.9,1.36203]
[1718007955283,0.804,3671.2,3670.9,1.36203]
[1718007955490,0.30652,3671.1,3670.9,1.36203]
[1718007955830,0.804,3671.2,3670.9,1.36203]
[1718007956628,0.804,3671.4,3670.9,1.36203]
[1718007956787,0.804,3671.2,3670.9,1.36203]
[1718007957933,2.4644,3671.6,3670.9,1.36203]
[1718007958090,0.804,3671.4,3670.9,1.36203]
[1718007958447,0.804,3671.4,3671.2,1.36194]
[1718007959326,2.4644,3671.6,3671.2,1.36194]
[1718007959503,0.804,3671.5,3671.2,1.36194]
[1718007960588,0.804,3671.3,3671.2,1.36194]
[1718007964632,3.26044953,3671.8,3671.2,1.36194]
[1718007964949,0.05167045,3671.7,3671.0,2.4878]
[1718007965149,0.05167045,3671.7,3671.5,1.36183]
[1718007965527,0.804,3671.8,3671.5,1.36183]
[1718007965846,0.05173324,3671.6,3671.5,1.36183]
[1718007966015,0.05173808,3671.6,3671.5,1.36183]
[1718007966417,0.804,3671.8,3671.5,1.36183]
[1718007966915,0.0517771,3671.7,3671.5,1.36183]
[1718007967127,0.804,3671.8,3671.5,1.36183]
[1718007967328,0.05174212,3671.6,3671.5,1.36183]
[1718007967647,0.804,3671.8,3671.5,1.36183]
[1718007968027,2.4901,3672.2,3671.7,1.36173]
[1718007968227,3.07374489,3672.2,3671.7,1.36173]
[1718007968422,0.804,3671.8,3671.7,1.36173]
[1718007977188,0.804,3671.8,3671.4,1.36187]
[1718007977350,0.804,3671.6,3671.4,1.36187]
[1718007978074,0.05185019,3671.5,3671.4,1.36187]
[1718007978677,0.05185019,3671.5,3671.4,4.832757]
[1718007978983,0.804,3672.5,3672.1,1.36161]
[1718007979183,0.804,3672.4,3672.1,1.36161]
[1718007979356,0.804,3672.2,3672.1,1.36161]
[1718007980443,2.3614,3672.1,3671.7,1.36173]
[1718007980650,0.804,3671.8,3671.7,1.36173]
[1718007980850,0.85601328,3671.8,3671.7,1.36173]
[1718007981478,0.05201328,3671.8,3671.7,1.36173]
[1718007981681,0.804,3671.8,3671.7,1.36173]
[1718007981844,0.85619514,3671.8,3671.7,1.36173]
[1718007983561,0.85619514,3671.8,3671.6,7.28]
[1718007985183,0.85619514,3671.8,3671.4,4.36187]
[1718007985358,0.85619514,3671.8,3671.4,1.36187]
[1718007985683,0.804,3671.8,3671.4,1.36187]
[1718007986047,2.3614,3672.1,3671.4,1.36187]
[1718007986381,0.804,3671.7,3671.4,1.36187]
[1718007987285,0.804,3671.9,3671.4,1.36187]
[1718007989450,0.05201129,3671.8,3671.4,1.36187]
[1718007989651,0.804,3671.9,3671.4,1.36187]
[1718007989865,0.05202095,3671.8,3671.4,1.36187]
[1718007990188,0.804,3671.9,3671.4,1.36187]
[1718007990384,2.3614,3672.1,3671.4,1.36187]
[1718007990682,0.804,3671.9,3671.4,1.36187]
[1718007990980,0.05129879,3671.8,3671.4,1.36187]
[1718008015937,0.90194832,3671.8,3671.4,1.36187]
[1718008016732,0.05129879,3671.8,3671.4,1.36187]
[1718008019601,0.804,3671.6,3671.0,4.36199]
[1718008020234,0.05024386,3671.5,3671.0,4.36199]
[1718008020627,0.804,3671.4,3671.0,4.36199]
[1718008020831,1.19964934,3671.4,3671.0,1.36199]
[1718008021041,0.05014651,3671.3,3671.0,1.36199]
[1718008023642,1.65464953,3671.6,3671.0,1.36199]
[1718008023847,0.05012852,3671.2,3671.0,1.36199]
[1718008024009,1.65464953,3671.6,3671.0,1.36199]
[1718008024211,0.05011536,3671.1,3671.0,1.36199]
[1718008024408,1.65464953,3671.6,3671.0,1.36199]
[1718008024948,0.050168,3671.5,3671.0,1.36199]
[1718008030925,0.050168,3671.5,3671.1,2.2946]
[1718008032259,0.050168,3671.5,3671.3,2.4574]
[1718008032558,0.85064953,3671.9,3671.4,1.36187]
[1718008032757,0.05017629,3671.8,3671.4,1.36187]
[1718008033641,0.05017629,3671.8,3671.6,1.36177]
[1718008034227,0.85064953,3672.0,3671.6,1.36177]
[1718008034729,0.05019428,3671.9,3671.6,1.36177]
[1718008038348,1.70484381,3671.9,3671.6,1.36177]
[1718008041281,1.98874813,3671.9,3671.3,3.8193]
[1718008041974,0.804,3671.7,3671.3,1.3619]
[1718008042175,0.05042446,3671.6,3671.3,1.3619]
[1718008043281,0.804,3671.5,3671.3,1.3619]
[1718008043647,0.05032027,3671.4,3671.3,1.3619]
[1718008045091,0.05032027,3671.4,3671.0,1.36201]
[1718008045455,0.804,3671.5,3671.0,1.36201]
[1718008045853,1.65464953,3671.7,3671.0,1.36201]
[1718008047468,2.3635,3671.2,3670.7,7.28]
[1718008047682,0.804,3670.8,3670.7,7.28]
[1718008047926,3.1675,3670.8,3670.7,7.28]
[1718008048193,0.05020624,3670.8,3670.7,7.28]
[1718008048691,0.85064953,3670.9,3670.7,7.28]
[1718008049006,2.16698442,3670.9,3670.7,7.28]
[1718008049206,0.05004296,3670.8,3670.7,7.28]
[1718008050902,0.804,3671.0,3670.7,7.28]
[1718008051088,0.04965014,3670.8,3670.7,7.28]
[1718008051286,0.804,3671.0,3670.7,7.28]
[1718008051603,0.04965876,3670.8,3670.7,7.28]
[1718008051807,1.45252689,3671.0,3670.7,7.28]
[1718008052019,0.04966572,3670.8,3670.7,7.28]
[1718008052308,1.45252689,3671.0,3670.0,2.16638]
[1718008052513,1.45252689,3671.0,3670.0,4.36238]
[1718008052514,0.85367963,3670.8,3670.0,4.36238]
[1718008052718,0.804,3670.8,3670.0,5.424548]
[1718008053374,2.265,3671.0,3670.0,4.36238]
[1718008053603,0.804,3670.8,3670.0,4.36238]
[1718008053922,0.04953419,3670.7,3670.0,4.36238]
[1718008054288,0.804,3670.8,3670.0,4.36238]
[1718008054494,0.04952103,3670.6,3670.0,4.36238]
[1718008054687,0.04953419,3670.7,3670.0,4.36238]
[1718008055007,0.0495162,3670.6,3670.0,4.36238]
[1718008055454,0.804,3670.8,3670.0,4.36238]
[1718008056031,0.04939244,3670.7,3670.0,4.36238]
[1718008056206,0.04939244,3670.7,3670.0,5.124548]
[1718008056676,0.804,3670.8,3670.0,5.124548]
[1718008057077,0.04941533,3670.7,3670.0,5.124548]
[1718008057402,0.804,3670.8,3670.0,5.124548]
[1718008058004,0.04941533,3670.7,3670.0,5.124548]
[1718008058203,0.804,3670.8,3670.0,5.124548]
[1718008058379,0.04941533,3670.7,3670.0,5.124548]
[1718008058580,0.804,3670.8,3670.2,1.36232]
[1718008058796,0.04941533,3670.7,3670.2,1.36232]
[1718008061720,2.421,3670.6,3670.2,1.36232]
[1718008062022,0.85339384,3670.5,3670.2,1.36232]
[1718008064421,0.85339384,3670.5,3669.9,1.36243]
[1718008064789,0.804,3670.5,3669.9,1.36243]
[1718008067424,0.804,3670.3,3669.9,1.36243]
[1718008067590,2.4253,3670.2,3669.9,1.36243]
[1718008067986,0.04912985,3670.1,3669.9,1.36243]
[1718008068833,0.04912985,3670.1,3670.0,2.3359]
[1718008068996,0.04912985,3670.1,3669.9,1.798673]
[1718008069197,0.804,3670.5,3669.9,1.798673]
[1718008069703,0.04880896,3670.4,3669.9,1.798673]
[1718008070995,0.804,3670.6,3669.9,1.798673]
[1718008071219,0.04877995,3670.5,3669.9,1.798673]
[1718008071627,2.3569,3671.0,3670.1,3.70545]
[1718008071935,0.04876678,3670.4,3670.1,3.70545]
[1718008072115,0.804,3670.7,3670.1,3.70545]
[1718008072308,0.04874972,3670.3,3670.1,3.70545]
[1718008072512,0.804,3670.7,3670.1,3.70545]
[1718008073027,0.804,3670.5,3669.8,2.2905]
[1718008073232,0.804,3670.3,3669.8,5.2905]
[1718008073723,0.0487408,3670.2,3669.8,3.0]
[1718008073935,0.804,3670.3,3669.7,1.3625]